Workbook

Sheet BIG SIMULATOR (hidden)
N2: Estado Civil
N3: Solteiro / Viúvo / Divorciado | O3: 0
N4: Casado / Unido de facto | O4: 1
N7: Número de Filhos
N8: 0
N9: 1
N10: 2
N11: 3
N12: 4
B13: DESCRIÇÃO | G13: 2019 | H13: 2020 | N13: 5
N15: Número de Ascendentes
B16: RENDIMENTO BRUTO | N16: 0
B17: TRABALHO DEPENDENTE | G17: =H117 -> 0 | H17: =I117 -> 0 | N17: 1
B18: PENSÕES DE VELHICE | G18: =H135 -> 0 | H18: =I135 -> 0 | N18: 2
N19: 3
B20: TOTAL | G20: =G17+G18 -> 0 | H20: =H17+H18 -> 0 | N20: 4
B22: DEDUÇÕES ESPECÍFICAS
B23: TRABALHO DEPENDENTE | G23: =H119 -> 0 | H23: =I119 -> 0 | N23: Tributação conjunta | O23: 1
N24: Tributação separada | O24: 2
B26: PENSÕES | G26: =H137 -> 0 | H26: =I137 -> 0
B27: TOTAL | G27: =G23+G26 -> 0 | H27: =H23+H26 -> 0
B29: RENDIMENTO COLETÁVEL | G29: =G20-G27 -> 0 | H29: =H20-H27 -> 0
B35: CÁLCULO DO IMPOSTO:
B36: COEFICIENTE CONJUGAL | G36: =IF((IF(C87=1,G29,IF(AND(C96=2,C87=2),G29,G29/2)))<0,0,(IF(C87=1,G29,IF(AND(C96=2,C87=2),G29,G29/2)))) -> 0 | H36: =IF((IF(C87=1,H29,IF(AND(C96=2,C87=2),H29,H29/2)))<0,0,(IF(C87=1,H29,IF(AND(C96=2,C87=2),H29,H29/2)))) -> 0
B37: TAXA A APLICAR | G37: =VLOOKUP($G$36,$K$102:$N$108,3,TRUE) -> 0.145 | H37: =VLOOKUP($H$36,$K$127:$N$133,3,TRUE) -> 0.145
B38: APLICAÇÃO DE TAXA PROGRESSIVA | G38: =IFERROR(ROUND(G37*G36,2),"") -> 0 | H38: =IFERROR(ROUND(H37*H36,2),"") -> 0
B39: PARCELA A ABATER | G39: =VLOOKUP($G$36,$K$102:$N$108,4,TRUE) -> 0 | H39: =VLOOKUP($H$36,$K$127:$N$133,4,TRUE) -> 0
B40: TAXA DE SOLIDARIEDADE | G40: =IF($C$87=1,((VLOOKUP(G36,$P$104:$S$106,3,TRUE)*G36)-VLOOKUP(G36,$P$104:$S$106,4,TRUE)),IF(AND($C$87=2,$C$96=1),((VLOOKUP(G36,$P$104:$S$106,3,TRUE)*G36)-VLOOKUP(G36,$P$104:$S$106,4,TRUE))*2,((VLOOKUP(G36,$P$104:$S$106,3,TRUE)*G36)-VLOOKUP(G36,$P$104:$S$106,4,TRUE)))) -> 0 | H40: =IF($C$87=1,((VLOOKUP(H36,$P$104:$S$106,3,TRUE)*H36)-VLOOKUP(H36,$P$104:$S$106,4,TRUE)),IF(AND($C$87=2,$C$96=1),((VLOOKUP(H36,$P$104:$S$106,3,TRUE)*H36)-VLOOKUP(H36,$P$104:$S$106,4,TRUE))*2,((VLOOKUP(H36,$P$104:$S$106,3,TRUE)*H36)-VLOOKUP(H36,$P$104:$S$106,4,TRUE)))) -> 0
B42: SUB-TOTAL | G42: =IFERROR(ROUND((G38-G39+G40),2),"") -> 0 | H42: =IFERROR(ROUND((H38-H39+H40),2),"") -> 0
B44: COLETA | G44: =IF($C$87=1,G42,IF(AND($C$87=2,$C$96=1),(G38-G39)*2+G40,G38-G39+G40)) -> 0 | H44: =IF($C$87=1,H42,IF(AND($C$87=2,$C$96=1),(H38-H39)*2+H40,H38-H39+H40)) -> 0
B46: DEDUÇÕES À COLECTA
B47: DEDUÇÕES DEPENDENTES E ASCENDENTES | G47: =G159+G160 -> 0 | H47: =H159+H160 -> 0
B48: DESPESAS GERAIS | G48: =IF(C87=1,IF(C90<>0,IF(0.45*H91>335,335,0.45*H91),IF(0.35*H91>250,250,0.35*H91)),IF(C96=1,IF(0.35*H91>500,500,0.35*H91),IF(0.35*H91>250,250,0.35*H91))) -> 0 | H48: =IF(C87=1,IF(C90<>0,IF(0.45*H91>335,335,0.45*H91),IF(0.35*H91>250,250,0.35*H91)),IF(C96=1,IF(0.35*H91>500,500,0.35*H91),IF(0.35*H91>250,250,0.35*H91))) -> 0
B50: DESPESAS DE SAÚDE | G50: =IF(C87=1,IF(H86*0.15>1000,1000,0.15*H86),IF(C96=2,IF(H86*0.075>500,500,0.075*H86),IF(H86*0.15>1000,1000,0.15*H86))) -> 0 | H50: =IF(C87=1,IF(H86*0.15>1000,1000,0.15*H86),IF(C96=2,IF(H86*0.075>500,500,0.075*H86),IF(H86*0.15>1000,1000,0.15*H86))) -> 0
B51: DESPESAS DE EDUCAÇÃO | G51: =IF($C$87=1,IF($H$87*0.3>800,800,0.3*$H$87),IF($C$96=2,IF($H$87*0.15>400,400,0.15*$H$87),IF($H$87*0.3>800,800,0.3*$H$87))) -> 0 | H51: =IF($C$87=1,IF($H$87*0.3>800,800,0.3*$H$87),IF($C$96=2,IF($H$87*0.15>400,400,0.15*$H$87),IF($H$87*0.3>800,800,0.3*$H$87))) -> 0
B52: ENCARGOS COM IMÓVEIS - JUROS | G52: =IF($C$95<=2011,IF($C$87=1,IF(G36>30000,IF($H$88*0.15>296,296,$H$88*0.15),IF(0.15*$H$88>VLOOKUP(G36,$F$172:$I$173,3,TRUE),VLOOKUP(G36,$F$172:$I$173,3,TRUE),0.15*$H$88)),IF($C$96=2,IF(G36>30000,IF($H$88*0.075>148,148,$H$88*0.075),IF(0.075*$H$88>0.5*VLOOKUP(G36,$F$172:$I$173,3,TRUE),0.5*VLOOKUP(G36,$F$172:$I$173,3,TRUE),0.075*$H$88)),IF($C$96=1,IF(G36>30000,IF($H$88*0.15>296,296,$H$88*0.15),IF(0.15*$H$88>VLOOKUP(G36,$F$172:$I$173,3,TRUE),VLOOKUP(G36,$F$172:$I$173,3,TRUE),0.15*$H$88)),0)))) -> 0 | H52: =IF($C$95<=2011,IF($C$87=1,IF(H36>30000,IF($H$88*0.15>296,296,$H$88*0.15),IF(0.15*$H$88>VLOOKUP(H36,$F$185:$I$186,3,TRUE),VLOOKUP(H36,$F$185:$I$186,3,TRUE),0.15*$H$88)),IF($C$96=2,IF(H36>30000,IF($H$88*0.075>148,148,$H$88*0.075),IF(0.075*$H$88>0.5*VLOOKUP(H36,$F$185:$I$186,3,TRUE),0.5*VLOOKUP(H36,$F$185:$I$186,3,TRUE),0.075*$H$88)),IF($C$96=1,IF(H36>30000,IF($H$88*0.15>296,296,$H$88*0.15),IF(0.15*$H$88>VLOOKUP(H36,$F$185:$I$186,3,TRUE),VLOOKUP(H36,$F$185:$I$186,3,TRUE),0.15*$H$88)),0)))) -> 0
B53: RENDAS | G53: =IF($C$87=1,IF(G36>30000,IF($H$89*0.15>502,502,$H$89*0.15),IF(0.15*$H$89>VLOOKUP(G36,$F$166:$I$167,3,TRUE),VLOOKUP(G36,$F$166:$I$167,3,TRUE),0.15*$H$89)),IF($C$96=2,IF(G36>30000,IF($H$89*0.075>251,251,$H$89*0.075),IF(0.075*$H$89>0.5*VLOOKUP(G36,$F$166:$I$167,3,TRUE),0.5*VLOOKUP(G36,$F$166:$I$167,3,TRUE),0.075*$H$89)),IF(G36>30000,IF($H$89*0.15>502,502,$H$89*0.15),IF(0.15*$H$89>VLOOKUP(G36,$F$166:$I$167,3,TRUE),VLOOKUP(G36,$F$166:$I$167,3,TRUE),0.15*$H$89)))) -> 0 | H53: =IF($C$87=1,IF(H36>30000,IF($H$89*0.15>502,502,$H$89*0.15),IF(0.15*$H$89>VLOOKUP(H36,$F$178:$I$179,3,TRUE),VLOOKUP(H36,$F$178:$I$179,3,TRUE),0.15*$H$89)),IF($C$96=2,IF(H36>30000,IF($H$89*0.075>251,251,$H$89*0.075),IF(0.075*$H$89>0.5*VLOOKUP(H36,$F$178:$I$179,3,TRUE),0.5*VLOOKUP(H36,$F$178:$I$179,3,TRUE),0.075*$H$89)),IF(H36>30000,IF($H$89*0.15>502,502,$H$89*0.15),IF(0.15*$H$89>VLOOKUP(H36,$F$178:$I$179,3,TRUE),VLOOKUP(H36,$F$178:$I$179,3,TRUE),0.15*$H$89)))) -> 0
B54: PENSÃO DE ALIMENTOS | G54: =0.2*H90 -> 0 | H54: =0.2*H90 -> 0
B55: TOTAL (SAUDE; EDUCAÇÃO; IMOVEIS; RENDAS; PENSÕES DE ALIMENTOS) | G55: =SUM(G50:G54) -> 0 | H55: =SUM(H50:H54) -> 0
B56: CONTRIBUIÇÕES PARA PPR | G56: =IF(G18=0,IF('Simular IRS 2020'!F18<35,IF(0.2*'BIG SIMULATOR'!H92>400,400,0.2*'BIG SIMULATOR'!H92),IF(AND('Simular IRS 2020'!F18>=35,'Simular IRS 2020'!F18<=50),IF(0.2*'BIG SIMULATOR'!H92>350,350,0.2*'BIG SIMULATOR'!H92),IF(0.2*'BIG SIMULATOR'!H92>300,300,0.2*'BIG SIMULATOR'!H92)))+IF('Simular IRS 2020'!F20<35,IF(0.2*'BIG SIMULATOR'!H93>400,400,0.2*'BIG SIMULATOR'!H93),IF(AND('Simular IRS 2020'!F20>=35,'Simular IRS 2020'!F20<=50),IF(0.2*'BIG SIMULATOR'!H93>350,350,0.2*'BIG SIMULATOR'!H93),IF(0.2*'BIG SIMULATOR'!H93>300,300,0.2*'BIG SIMULATOR'!H93))),0) -> 0 | H56: =IF(H18=0,IF('Simular IRS 2020'!F18<35,IF(0.2*'BIG SIMULATOR'!H92>400,400,0.2*'BIG SIMULATOR'!H92),IF(AND('Simular IRS 2020'!F18>=35,'Simular IRS 2020'!F18<=50),IF(0.2*'BIG SIMULATOR'!H92>350,350,0.2*'BIG SIMULATOR'!H92),IF(0.2*'BIG SIMULATOR'!H92>300,300,0.2*'BIG SIMULATOR'!H92)))+IF('Simular IRS 2020'!F20<35,IF(0.2*'BIG SIMULATOR'!H93>400,400,0.2*'BIG SIMULATOR'!H93),IF(AND('Simular IRS 2020'!F20>=35,'Simular IRS 2020'!F20<=50),IF(0.2*'BIG SIMULATOR'!H93>350,350,0.2*'BIG SIMULATOR'!H93),IF(0.2*'BIG SIMULATOR'!H93>300,300,0.2*'BIG SIMULATOR'!H93))),0) -> 0
B57: ENCARGOS COM DONATIVOS | G57: =IF(0.25*H94*1.3>0.15*G44,0.15*G44,0.25*H94*1.3) -> 0 | H57: =IF(0.25*H94*1.3>0.15*H44,0.15*H44,0.25*H94*1.3) -> 0
B58: TOTAL (EBF) | G58: =SUM(G56:G57) -> 0 | H58: =SUM(H56:H57) -> 0
B60: LIMITE OU SOMA | G60: =IF($C$87=1,MIN(G55+G58,VLOOKUP(G36,$K$113:$M$115,3,TRUE)),IF($C$96=2,MIN(G55+G58,0.5*VLOOKUP(G36,$K$113:$M$115,3,TRUE)),MIN(G55+G58,VLOOKUP(G36,$K$113:$M$115,3,TRUE)))) -> 0 | H60: =IF($C$87=1,MIN(H55+H58,VLOOKUP(H36,$K$138:$M$140,3,TRUE)),IF($C$96=2,MIN(H55+H58,0.5*VLOOKUP(H36,$K$138:$M$140,3,TRUE)),MIN(H55+H58,VLOOKUP(H36,$K$138:$M$140,3,TRUE)))) -> 0
K61: ME na Trib. Conjunta
B63: TOTAL DAS DEDUÇÕES | G63: =MIN(G47+G60+G48,G44) -> 0 | H63: =MIN(H47+H60+H48,H44) -> 0
K64: 2019 | M64: 2020
B65: IMPOSTO APURADO | G65: =IF(G44-G63<0,0,G44-G63) -> 0 | H65: =IF(H44-H63<0,0,H44-H63) -> 0 | K65: ME Garantido SPA? | L65: Diferença | M65: ME Garantido SPA? | N65: Diferença
K66: =IF((M86+M88)-G65/(G20-G27)*(M86+M88-H110-H127)>G73,"Sim","Não") ->  | L66: =IF(K66="Sim",IF(M86+M88>G73,(M86+M88-G65/(G20-G27)*(M86+M88-H110-H127)-G73),G65/(G20-G27)*(M86+M88-H110-H127)),IF(M86+M88>G73,(M86+M88-G65/(G20-G27)*(M86+M88-H110-H127)-G73),G65/(G20-G27)*(M86+M88-H110-H127))*-1) ->  | M66: =IF((M86+M88)-H65/(G20-G27)*(M86+M88-I110-I127)>H73,"Sim","Não") ->  | N66: =IF(M66="Sim",IF(M86+M88>H73,(M86+M88-H65/(H20-H27)*(M86+M88-I110-I127)-H73),H65/(H20-H27)*(M86+M88-I110-I127)),IF(M86+M88>H73,(M86+M88-H65/(H20-H27)*(M86+M88-I110-I127)-H73),H65/(H20-H27)*(M86+M88-I110-I127))*-1) -> 
K67: ME Garantido SPB? | M67: ME Garantido SPB?
K68: =IF((N86+N88)-G65/(G20-G27)*(N86+N88-H115-H133)>G73,"Sim","Não") ->  | L68: =IF(K68="Sim",IF(N86+N88>G73,(N86+N88-G65/(G20-G27)*(N86+N88-H115-H133)-G73),G65/(G20-G27)*(N86+N88-H115-H133)),IF(N86+N88>G73,(N86+N88-G65/(G20-G27)*(N86+N88-H115-H133)-G73),G65/(G20-G27)*(N86+N88-H115-H133))*-1) ->  | M68: =IF((N86+N88)-H65/(G20-G27)*(N86+N88-I115-I133)>H73,"Sim","Não") ->  | N68: =IF(M68="Sim",IF(N86+N88>H73,(N86+N88-H65/(H20-H27)*(N86+N88-I115-I133)-H73),H65/(H20-H27)*(N86+N88-I115-I133)),IF(N86+N88>H73,(N86+N88-H65/(H20-H27)*(N86+N88-I115-I133)-H73),H65/(H20-H27)*(N86+N88-I115-I133))*-1) -> 
K70: Soma | L70: =IF(L66+L68<0,(L66+L68)*-1,0) ->  | N70: =IF(N66+N68<0,(N66+N68)*-1,0) -> 
B72: RENDIMENTO LÍQUIDO | G72: =G20-G65 -> 0 | H72: =H20-H65 -> 0 | K72: ME Não Casado | L72: =IF(G74="Não",0,IF(G20>G73,G73-G72,G65)) -> 0
B73: MÍNIMO DE EXISTÊNCIA | G73: =K82*1.5*14 -> 9150.96 | H73: =L82*1.5*14 -> 9215.01 | K73: ME Casado Tsep | L73: =IF(G74="Não",0,IF(G20>G73,G73-G72,G65)) -> 0
B74: APLICAÇÃO DE MÍNIMO DE EXISTÊNCIA? | G74: =IFERROR(IF(AND($C$87=2,$C$96=2,G72<G73),"Sim",IF(AND($C$87=1,G72<G73),"Sim",IF(AND($C$87=2,$C$96=1,L70<>0),"Sim","Não"))),"N/A") -> Sim | H74: =IFERROR(IF(AND($C$87=2,$C$96=2,H72<H73),"Sim",IF(AND($C$87=1,H72<H73),"Sim",IF(AND($C$87=2,$C$96=1,N70<>0),"Sim","Não"))),"N/A") -> Sim
B75: A DECRESCER À COLETA | G75: =+IF($C$87=1,$L$72,IF(AND($C$87=2,$C$96=2),$L$73,L70)) -> 0 | H75: =+IF($C$87=1,$L$72,IF(AND($C$87=2,$C$96=2),$L$73,N70)) -> 0
B77: IMPOSTO APURADO APÓS MÍNIMO DE EXISTÊNCIA | G77: =G65-G75 -> 0 | H77: =H65-H75 -> 0
B78: TAXA EFETIVA | G78: =IFERROR(#REF!/G20,0) -> 0 | H78: =IFERROR(#REF!/H20,0) -> 0 | K78: SMN 2019 | L78: SMN 2020
K79: =600*14 -> 8400 | L79: =635*14 -> 8890
B80: RENDIMENTO LÍQUIDO APÓS MÍNIMO DE EXISTÊNCIA | G80: =G20-G77 -> 0 | H80: =H20-H77 -> 0
B81: DIFERENÇA RENDIMENTO LÍQUIDO | H81: =H80-G80 -> 0 | K81: IAS 2019 | L81: IAS 2020
K82: 435.76 | L82: 438.81
F84: DEDUÇÕES À COLETA | K84: RENDIMENTO | M84: Sujeito Passivo A | N84: Sujeito Passivo B
C86: ='Simular IRS 2020'!F8 -> 0 | F86: Despesas de saúde | H86: ='Simular IRS 2020'!G35 -> 0 | K86: RENDIMENTO DO TRABALHO | M86: ='Simular IRS 2020'!G25 -> 0 | N86: ='Simular IRS 2020'!L25 -> 0
B87: Estado Civil: Solteiro (1), Casado (2) | C87: =IF(C86="Casado / Unido de facto",2,1) -> 1 | F87: Despesas de educação | H87: ='Simular IRS 2020'!G37 -> 0
B88: <=3 | C88: ='Simular IRS 2020'!F12 -> 0 | F88: Encargos com imóveis - juros | H88: ='Simular IRS 2020'!G42 -> 0 | K88: PENSÕES VELHICE | M88: ='Simular IRS 2020'!G29 -> 0 | N88: ='Simular IRS 2020'!L29 -> 0
B89: >3 | C89: ='Simular IRS 2020'!F14 -> 0 | F89: Rendas | H89: ='Simular IRS 2020'!G44 -> 0
B90: Nº de dependentes*: | C90: =C88+C89 -> 0 | F90: Pensão de alimentos | H90: ='Simular IRS 2020'!G48 -> 0 | L90: TOTAL | M90: =SUM(M86,N86,M88,N88) -> 0
B91: Nº de ascendentes | C91: ='Simular IRS 2020'!F16 -> 0 | F91: Despesas Gerais | H91: ='Simular IRS 2020'!G46 -> 0
F92: PPR A | H92: ='Simular IRS 2020'!G54 -> 0
F93: PPR B | H93: ='Simular IRS 2020'!G56 -> 0
F94: Donativos | H94: ='Simular IRS 2020'!G58 -> 0 | K94: Taxas IRS e limites dedução à coleta
B95: Ano de contrato | C95: ='Simular IRS 2020'!G40 -> 0
B96: Tipo de tributação | C96: =IF(C97="Tributação separada",2,1) -> 1
C97: ='Simular IRS 2020'!F10 -> 0 | K97: 2019 | M97: Continente
K99: Rendimento colectável | M99: Taxa | N99: Parcela
K100: (Euros) | M100: (%) | N100: Abater
K101: De | L101: Até | N101: (Euros) | P101: TAXA ADICIONAL DE SOLIDARIEDADE
C102: RENDIMENTO | K102: 0 | L102: 7091 | M102: 0.145 | N102: 0
K103: =L102 -> 7091 | L103: 10700 | M103: 0.23 | N103: 602.735 | P103: Escalões | R103: Taxa | S103: Parcela
C104: Trabalho Dependente - Dedução específica | K104: 10700 | L104: 20261 | M104: 0.285 | N104: 1191.231 | P104: 0 | Q104: 80000 | R104: 0 | S104: 0
H105: 2019 | I105: 2020 | K105: 20261 | L105: 25000 | M105: 0.35 | N105: 2508.10919 | P105: 80000 | Q105: 250000 | R105: 0.025 | S105: 2000
K106: 25000 | L106: 36856 | M106: 0.37 | N106: 3008.25 | P106: 250000 | Q106: 1e+17 | R106: 0.05 | S106: 8250
C107: Sujeito Passivo A | E107: Rendimento do trabalho dependente do sujeito passivo A | H107: =M86 -> 0 | I107: =M86 -> 0 | K107: 36856 | L107: 80640 | M107: 0.45 | N107: 5956.66672
E108: Contribuições obrigatórias para a SS | H108: =0.11*H107 -> 0 | I108: =0.11*I107 -> 0 | K108: 80640 | L108: 99999999999 | M108: 0.48 | N108: 8376.0768
E109: Dedução mínima prevista para rendimentos da categoria | H109: 4104 | I109: 4104
E110: Dedução aplicável | H110: =IF(H107>=H109,IF(H108=0,H109,IF(H108>H109,H108,H109)),H107) -> 0 | I110: =IF(I107>=I109,IF(I108=0,I109,IF(I108>I109,I108,I109)),I107) -> 0 | M110: Limite das deduções à colecta
C112: Sujeito Passivo B | E112: Rendimento do trabalho dependente do sujeito passivo B | H112: =N86 -> 0 | I112: =N86 -> 0
E113: Contribuições obrigatórias para a SS | H113: =H112*0.11 -> 0 | I113: =I112*0.11 -> 0 | K113: 0 | L113: 7091 | M113: 9999999
E114: Dedução mínima prevista para rendimentos da categoria | H114: 4104 | I114: 4104 | K114: =L113 -> 7091 | L114: 80640 | M114: =IF(C90>2,(1+(0.05*C90))*(1000+(1500*((80640-G36)/(80640-7091)))),1000+(1500*((80640-G36)/(80640-7091)))) -> 2644.617874
E115: Dedução aplicável | H115: =IF(H112>=H114,IF(H113=0,H114,IF(H113>H114,H113,H114)),H112) -> 0 | I115: =IF(I112>=I114,IF(I113=0,I114,IF(I113>I114,I113,I114)),I112) -> 0 | K115: =L114 -> 80640 | L115: 99999999999 | M115: =IF(C90>2,(1+(0.05*C90))*1000,1000) -> 1000
C117: TOTAL SP A+B | E117: RENDIMENTO BRUTO DA CATEGORIA | H117: =H107+H112 -> 0 | I117: =I107+I112 -> 0
C119: TOTAL SP A+B | E119: DEDUÇÃO ESPECÍFICA AOS REND. CATEGORIA | H119: =H110+H115 -> 0 | I119: =I110+I115 -> 0
C122: Pensões - Dedução específica | K122: 2020 | M122: Continente
H123: 2019 | I123: 2020
C124: Sujeito Passivo A | E124: Pensões de velhice | H124: =M88 -> 0 | I124: =M88 -> 0 | K124: Rendimento colectável | M124: Taxa | N124: Parcela
E125: Total de Pensões | H125: =H124 -> 0 | I125: =I124 -> 0 | K125: (Euros) | M125: (%) | N125: Abater
E126: Dedução mínima prevista para rendimentos da categoria | H126: 4104 | I126: 4104 | K126: De | L126: Até | N126: (Euros)
E127: Dedução aplicável | H127: =IF(H125<4104,H125,4104) -> 0 | I127: =IF(I125<4104,I125,4104) -> 0 | K127: 0 | L127: 7112 | M127: 0.145 | N127: 0
K128: =L127 -> 7112 | L128: 10732 | M128: 0.23 | N128: 604.543205
H129: 2019 | I129: 2020 | K129: 10732 | L129: 20322 | M129: 0.285 | N129: 1194.804693
C130: Sujeito Passivo B | E130: Pensões de velhice | H130: =N88 -> 0 | I130: =N88 -> 0 | K130: 20322 | L130: 25075 | M130: 0.35 | N130: 2515.633518
E131: Total de Pensões | H131: =H130 -> 0 | I131: =I130 -> 0 | K131: 25075 | L131: 36967 | M131: 0.37 | N131: 3017.27475
E132: Dedução mínima prevista para rendimentos da categoria | H132: 4104 | I132: 4104 | K132: 36967 | L132: 80882 | M132: 0.45 | N132: 5974.53672
E133: Dedução aplicável | H133: =IF(H131<4104,H131,4104) -> 0 | I133: =IF(I131<4104,I131,4104) -> 0 | K133: 80882 | L133: 99999999999 | M133: 0.48 | N133: 8401.20503
C135: TOTAL SP A+B | E135: RENDIMENTO BRUTO DA CATEGORIA | H135: =H130+H124 -> 0 | I135: =I130+I124 -> 0 | M135: Limite das deduções à colecta
C137: TOTAL SP A+B | E137: DEDUÇÃO ESPECÍFICA AOS REND. CATEGORIA | H137: =H127+H133 -> 0 | I137: =I127+I133 -> 0
K138: 0 | L138: 7112 | M138: 9999999
K139: =L138 -> 7112 | L139: 80882 | M139: =IF(C90>2,(1+(0.05*C90))*(1000+(1500*((80882-H36)/(80882-7112)))),1000+(1500*((80882-H36)/(80882-7112)))) -> 2644.611631
K140: =L139 -> 80882 | L140: 99999999999 | M140: =IF(C90>2,(1+(0.05*C90))*1000,1000) -> 1000
F141: Número de Dependentes
F142: Idade ≤ 3 anos a 31/12 | H142: =C88 -> 0
F143: Idade > 3 anos a 31/12 | H143: =C89 -> 0
H144: =H142+H143 -> 0
F145: Número de Ascendentes
F146: Ascendentes | H146: =+C91 -> 0
G150: 2019 | H150: 2020
F152: Dependentes com 3 anos ou menos (sem maj) | G152: 726 | H152: 726
F153: Dependentes com 3 anos ou menos (com maj) | G153: 726 | H153: 900
F154: Dependentes com mais de 3 anos | G154: 600 | H154: 600
F155: Ascendentes (mais do que 1) | G155: 525 | H155: 525
F156: Ascendentes (apenas 1) | G156: 635 | H156: 635
G158: 2019 | H158: 2020
F159: Dedução dependentes | G159: =IF(AND(C87=2,C96=2),(G152/2)*H142+(G154/2)*H143,G152*H142+G154*H143) -> 0 | H159: =IF(AND(C87=2,C96=2,H144<2),(H152/2)*H142+(H154/2)*H143,IF(AND(C87=2,C96=2,H144>1,H143>=1),(H153/2)*H142+(H154/2)*H143,IF(AND(C87=2,C96=2,H144>1,H143=0),(H152/2)+(H153/2)*(H142-1),IF(AND(C87=2,C96=1,H144<2),H152*H142+H154*H143,IF(AND(C87=2,C96=1,H144>1,H143>=1),H153*H142+H154*H143,IF(AND(C87=2,C96=1,H144>1,H143=0),H152+H153*(H142-1),IF(AND(C87=1,H144<2),H152*H142+H154*H143,IF(H143>=1,H153*H142+H154*H143,IF(H143=0,H152+H153*(H142-1)))))))))) -> 0
F160: Dedução ascendentes | G160: =IF(C96=2,IF(C91=0,0,IF(C91=1,G156/2,(G155*C91)/2)),IF(C91=0,0,IF(C91=1,G156,(G155*C91)))) -> 0 | H160: =IF(C96=2,IF(C91=0,0,IF(C91=1,H156/2,(H155*C91)/2)),IF(C91=0,0,IF(C91=1,H156,(H155*C91)))) -> 0
F163: Rendimento colectável | H163: Limite Dedução Rendas 2019
F164: (Euros)
F165: De | G165: Até
F166: 0 | G166: 7091 | H166: 800
F167: =G166 -> 7091 | G167: 30000 | H167: =502+((800-502)*((30000-G36)/(30000-F167))) -> 892.2396438
F169: Rendimento colectável | H169: Limite Dedução Juros 2019
F170: (Euros)
F171: De | G171: Até
F172: 0 | G172: 7091 | H172: 450
F173: =G172 -> 7091 | G173: 30000 | H173: =296+((450-296)*((30000-G36)/(30000-F173))) -> 497.6674669
F175: Rendimento colectável | H175: Limite Dedução Rendas 2020
F176: (Euros)
F177: De | G177: Até
F178: 0 | G178: 7112 | H178: 800
F179: =G178 -> 7112 | G179: 30000 | H179: =502+((800-502)*((30000-H36)/(30000-F179))) -> 892.5976931
F182: Rendimento colectável | H182: Limite Dedução Juros 2020
F183: (Euros)
F184: De | G184: Até
F185: 0 | G185: 7112 | H185: 450
F186: =G185 -> 7112 | G186: 30000 | H186: =296+((450-296)*((30000-H36)/(30000-F186))) -> 497.8524991
Q209: (1) Solteiro, (2) Casado
P211: =C87 -> 1

Sheet Capa

Sheet Simular IRS 2020
B6: Passo 1 | D6: Informação pessoal
D8: Estado civil
D10: Tributação Separada / Tributação Conjunta
D12: Nº de Dependentes com 3 anos ou menos | F12: 0
D14: Nº de Dependentes com mais de 3 anos | F14: 0
D16: Nº de Ascendentes | F16: 0
D18: Idade Sujeito Passivo A
D20: Idade Sujeito Passivo B
B23: Passo 2 | D23: Rendimentos
B24: Categoria A | G24: Sujeito Passivo A | L24: Sujeito Passivo B
D25: Rendimentos do trabalho dependente
B28: Categoria H
D29: Pensões de velhice
B33: Passo 3 | D33: Deduções à coleta do IRS, incluindo benefícios fiscais
B34: Deduções à coleta
D35: Despesas de saúde e prémios de seguros de saúde
D37: Despesas de educação do agregado familiar
D39: Despesas com aquisição de imóvel para habitação própria permanente
D40: Ano do contrato (preenchimento obrigatório)
D42: Juros
D44: Despesas com rendas para habitação própria permanente
D46: Despesas gerais (outras não referidas acima)
D48: Encargos com pensões de alimentos
D52: Contribuições para Planos Poupança Reforma (PPR's)
D54: Sujeito Passivo A
D56: Sujeito Passivo B
D58: Encargos com donativos
D63: =IF('BIG SIMULATOR'!C86="","Falta preencher dados",""&'BIG SIMULATOR'!C86&""&IF('BIG SIMULATOR'!C87=1,"",", "&'BIG SIMULATOR'!C97)&""&", "&IF('BIG SIMULATOR'!C90>1,""&'BIG SIMULATOR'!C90&" filhos",IF('BIG SIMULATOR'!C90=1,""&'BIG SIMULATOR'!C90&" filho","sem filhos")))&", "&IF('BIG SIMULATOR'!C91=0," sem ascendentes",IF('BIG SIMULATOR'!C91=1,""&'BIG SIMULATOR'!C91&" ascendente",""&'BIG SIMULATOR'!C91&" ascendentes")) -> 0, sem filhos, sem ascendentes
D66: Rendimento bruto | E66: 2019 | G66: 2020
D67: Rendimento bruto | E67: =IFERROR(+'BIG SIMULATOR'!$M$90,0) -> 0 | G67: =IFERROR(+'BIG SIMULATOR'!$M$90,0) -> 0
D68: IRS antes de deduções (1) | E68: ='BIG SIMULATOR'!G44 -> 0 | G68: ='BIG SIMULATOR'!H44 -> 0
D69: Deduções à coleta:
D70: Deduções por dependente / ascendente | E70: ='BIG SIMULATOR'!G47 -> 0 | G70: ='BIG SIMULATOR'!H47 -> 0
D71: Despesas gerais | E71: ='BIG SIMULATOR'!G48 -> 0 | G71: =+'BIG SIMULATOR'!H48 -> 0
D72: Saúde / Educação / Imóveis / Pensão de alimentos | E72: ='BIG SIMULATOR'!G55 -> 0 | G72: ='BIG SIMULATOR'!H55 -> 0
D73: Benefícios fiscais | E73: ='BIG SIMULATOR'!G58 -> 0 | G73: ='BIG SIMULATOR'!H58 -> 0
D74: Total deduções à coleta ou limite (2) | E74: ='BIG SIMULATOR'!G63 -> 0 | G74: ='BIG SIMULATOR'!H63 -> 0
D75: Mínimo de existência (3) | E75: =+'BIG SIMULATOR'!G75 -> 0 | G75: =+'BIG SIMULATOR'!H75 -> 0
D76: Imposto final (1) - (2) - (3) | E76: ='BIG SIMULATOR'!G44-'BIG SIMULATOR'!G63-'BIG SIMULATOR'!G75 -> 0 | G76: ='BIG SIMULATOR'!H44-'BIG SIMULATOR'!H63-'BIG SIMULATOR'!H75 -> 0
D77: Rendimento líquido de IRS | E77: ='BIG SIMULATOR'!G80 -> 0 | G77: ='BIG SIMULATOR'!H80 -> 0
D78: Diferença de rendimento líquido face a 2019 | G78: ='BIG SIMULATOR'!H81 -> 0
D79: Taxa efetiva | E79: ='BIG SIMULATOR'!G78 -> 0 | G79: ='BIG SIMULATOR'!H78 -> 0
D82: Caso o imposto final seja inferior a 25 €, não haverá lugar ao pagamento de qualquer imposto

Sheet Informações 2020
C6: Deduções por dependentes e ascendentes
C8: À coleta do IRS devida pelos sujeitos passivos, é dedutível:
C9: a) € 600 por cada dependente (acresce € 126 e € 300, caso seja o primeiro ou seguintes dependentes com idade igual ou inferior a 3 anos, respetivamente);
C10: b) € 525 por cada ascendente (acresce € 110 se existir apenas um ascendente no agregado familiar).*
C12: * O ascendente terá que viver em comunhão de habitação com o sujeito passivo e não poderá auferir rendimento superior à pensão mínima do regime geral
C14: Deduções por despesas gerais
C16: 35% do valor suportado por qualquer membro do agregado familiar:
C17: ● limite global de € 250 para cada sujeito passivo;
C18: ● a dedução opera no ano em que as faturas foram emitidas;
C19: ● para beneficiar da dedução os sujeitos passivos devem pedir ao emitente a inclusão do seu número de identificação fiscal nas faturas;
C20: ● o valor da dedução é apurado com base nas faturas comunicadas à Autoridade Tributária (AT) pelos emitentes até 25 de fevereiro do ano seguinte ao da sua emissão;
C21: 45% do valor suportado por qualquer membro do agregado familiar com o limite global de € 335, nas famílias monoparentais.
C23: Dedução por despesas de saúde
C25: 15% do valor suportado por qualquer membro do agregado familiar:
C26: ● limite global de € 1.000;
C27: ● são elegíveis para dedução as faturas que titulem prestações de serviços e aquisições de bens, isentos de IVA ou tributados à taxa reduzida, nas seguintes atividades:
C28: - atividade de saúde humana;
C29: - comércio a retalho de produtos farmacêuticos, em estabelecimentos especializados;
C30: - comércio a retalho de produtos médicos e ortopédicos, em estabelecimentos especializados;
C31: - comércio a retalho de material ótico, em estabelecimentos especializados
C32: - prémios de seguros de saúde.
C33: ● são elegíveis para dedução as faturas que titulem prestações de serviços e aquisições de bens, tributados à taxa normal de IVA, desde que devidamente justificados através de receita médica.
C35: Dedução por despesas com educação
C36: ã
C37: 30% do valor suportado por qualquer membro do agregado familiar com o limite global de € 800. Este limite pode ser aumentado em € 200, quando a diferença seja relativa a arrendamento de imóvel ou de parte de imóvel, a membros do agregado familiar que não tenham mais de 25 anos (cuja localização se situe a uma distância superior a 50 Kms da residência permanente);
C39: Majoração de 10% do valor de despesas suportadas por estudantes que frequentem estabelecimentos de ensino situados em território do interior e regiões autónomas, caso em que o limite global acima referido é elevado para € 1.000, se derivado deste tipo de despesas.
C41: Dedução por encargos com imóveis
C43: 15% do valor suportado por qualquer membro do agregado familiar, relativamente a rendas para fins de habitação permanente, com o limite de € 502. Este limite poderá ser superior, consoante o rendimento coletável do agregado familiar. No caso de transferência de residência permanente para um território do interior, o limite poderá ser aumentado para € 1,000, durante 3 anos;
C45: 15% do valor suportado por qualquer membro do agregado familiar, relativamente a juros de dívidas, por contratos celebrados até 31 de dezembro de 2011, contraídas para aquisição, construção ou beneficiação de imóveis para fins de habitação permanente ou arrendamento, com o limite de € 296. Este limite poderá ser superior, consoante o rendimento coletável do agregado familiar;
C47: Dedução por exigência de fatura
C49: 15% do IVA suportado, por qualquer membro do agregado familiar que conste de faturas que titulem determinadas prestações de serviço (manutenção e reparação de veículos automóveis e motociclos, alojamento, restauração e similares, atividades de salões de cabeleireiro e institutos de beleza e atividades veterinárias) e dedução de 100% do IVA suportado, por qualquer membro do agregado familiar com aquisição de passes mensais para utilização de transportes públicos;
C51: Despesas com pensões de alimentos
C53: 20% dos encargos com pensões de alimentos, desde que resultantes de sentença judicial ou acordo judicialmente homologado
C55: Encargos com donativos
C57: 25% dos donativos destinados a igrejas, instituições religiosas, instituições de caridade, museus, escolas, bibliotecas e outras entidades de cariz social, cultural ou científico reconhecidas pelo Estado, até ao limite de 15% da coleta
C59: Contribuições para Planos Poupança Reforma (PPR)
C61: 20% do valor aplicado com o limite de € 300, € 350 ou € 400 consoante a idade do sujeito passivo.
C63: Taxas IRS (para 2020)
C65: Rendimento Coletável (€) | F65: Taxas | G65: Parcela a abater (€)
C66: Até 7.112 | F66: 14,5% | G66: 0
C67: De mais de 7.112 até 10.732 | F67: 0.23 | G67: 604.543205
C68: De mais de 10.732 até 20.322 | F68: 28,5% | G68: 1194.804693
C69: De mais de 20.322 até 25.075 | F69: 0.35 | G69: 2515.633518
C70: De mais de 25.075 até 36.967 | F70: 0.37 | G70: 3017.27475
C71: De mais de 36.967 até 80.882 | F71: 0.45 | G71: 5974.53672
C72: Superior a 80.882 | F72: 0.48 | G72: 8401.20503

Sheet Disclaimer
C10: Simulador não prevê as seguintes situações
C12: - Residentes fiscais nos Açores e na Madeira;
C13: - Sujeitos passivos deficientes;
C14: - Agregados Familiares em que os dependentes ou os ascendentes aufiram rendimentos;
C15: - Situações de guarda conjunta de dependentes.
C17: Pressupostos da estimativa de imposto
C19: - As simulações de imposto encontram-se limitadas às categorias de rendimentos e despesas incluídas no simulador;
C20: - As estimativas disponibilizadas são meramente ilustrativas e baseadas na interpretação da PwC da Proposta de Lei n.º 69/XXII/2019, relativamente ao Orçamento de Estado para 2020;
C21: - As simulações de imposto não consideram o mínimo de existência (i.e. a não aplicação das taxas progressivas) para agregados familiares com três ou mais dependentes com rendimentos baixos.
C23: Pensões
C25: - No cálculo da dedução específica das pensões, considera-se que o valor de contribuições obrigatórias para regimes de proteção social e para subsistemas legais de saúde é inferior a € 4.104.
C27: Deduções à coleta
C29: Despesas de educação
C30: - O simulador não contempla as situações de despesas relativas a arrendamento de imóvel de estudantes que frequentem um estabelecimento de ensino a uma distância superior a 50 km da sua residência permanente nem a majoração dos encargos incorridos por estudantes que frequentem estabelecimentos de ensino situados no interior e nas regiões autónomas.
C32: Encargos com imóveis
C33: - O simulador não contempla a majoração do limite de dedução por encargos com imóveis, referente à transferência de residência permanente para um território do interior.
C35: Encargos com donativos
C36: - Assume-se por defeito uma majoração de 130%, sem qualquer limitação, dos encargos com donativos. No entanto, a majoração destes encargos dependerá da natureza da entidade beneficiária do mesmo.
C38: Exigência de fatura
C39: - O simulador não contempla a dedução referente à exigência de fatura.
C41: Tributação separada
C42: - No valor das despesas referentes a educação, saúde e encargos com imóveis, deverá colocar a totalidade das despesas incorridas pelo seu agregado familiar;
C43: - No valor das despesas gerais e familiares, deverá colocar a totalidade das despesas incorridas por si e 50% das despesas incorridas pelos seus dependentes;
C44: - No valor dos donativos, deverá colocar a totalidade dos donativos efetuados por si e 50% do valor dos donativos efetuados pelos seus dependentes;
C45: - No valor das pensões de alimentos, deverá colocar unicamente o valor de pensões de alimentos pagas por si.

Sheet Ajuda
